fUSD/lending_fUSD_20250726
["ID","MTS","AMOUNT","RATE_DAILY","PERIOD"]
[375171404,1753573848235,-111320.0521333,0.00021541,2]
[375171405,1753573848245,-150.0,0.00021543,2]
[375171406,1753573848255,-293.59775481,0.00021555,5]
[375171407,1753573848264,-31293.4773333,0.00021556,2]
[375171408,1753573848274,-13508.6031015,0.00021556,2]
[375171409,1753573848284,-118200.489,0.00021556,2]
[375171410,1753573848294,-151.0,0.00021556,2]
[375171411,1753573848303,-151.0,0.00021556,2]
[375171412,1753573848313,-1498.8889386,0.00021556,2]
[375171413,1753573848323,-111826.0565333,0.00021556,2]
[375171414,1753573848333,-151.0,0.00021556,2]
[375171415,1753573848342,-82736.9231739,0.00021556,2]
[375171416,1753573848352,-151.0,0.00021556,2]
[375171417,1753573848367,-151.0,0.00021556,2]
[375171418,1753573848376,-282.385004,0.00021556,2]
[375171419,1753573848386,-282.385004,0.00021556,2]
[375171420,1753573848397,-330.677177,0.00021556,2]
[375171421,1753573848407,-330.677177,0.00021556,2]
[375171422,1753573848418,-151.0,0.00021556,2]
[375171423,1753573848429,-5553.85345824,0.0002156,2]
[375171424,1753573848440,-221.380646,0.0002156,2]
[375171425,1753573848451,-196.136392,0.0002156,2]
[375171426,1753573848461,-150.0,0.00021562,4]
[375171427,1753573848470,-150.0,0.00021562,4]
[375171428,1753573848479,-151.0,0.00021562,2]
[375171429,1753573848490,-151.0,0.00021562,2]
[375171430,1753573848499,-151.0,0.00021562,2]
[375171431,1753573848509,-528.817904,0.00021562,2]
[375171432,1753573848519,-151.0,0.00021562,2]
[375171433,1753573848530,-528.817904,0.00021562,2]
[375171434,1753573848539,-151.0,0.00021562,2]
[375171435,1753573848550,-151.0,0.00021562,2]
[375171436,1753573848560,-151.0,0.00021562,2]
[375171437,1753573848570,-151.0,0.00021562,2]
[375171438,1753573848580,-151.0,0.00021562,2]
[375171439,1753573848589,-151.0,0.00021562,2]
[375171440,1753573848599,-151.0,0.00021562,2]
[375171441,1753573848609,-151.0,0.00021562,2]
[375171442,1753573848618,-1500.0,0.00021562,7]
[375171443,1753573848628,-1500.0,0.00021562,7]
[375171444,1753573848638,-1500.0,0.00021562,7]
[375171445,1753573848647,-1500.0,0.00021562,7]
[375171446,1753573848658,-1500.0,0.00021562,7]
[375171447,1753573848667,-1500.0,0.00021562,7]
[375171448,1753573848677,-1500.0,0.00021562,7]
[375171449,1753573848687,-1500.0,0.00021562,7]
[375171450,1753573848697,-1500.0,0.00021562,7]
[375171451,1753573848707,-1500.0,0.00021562,7]
[375171452,1753573848717,-1500.0,0.00021562,7]
[375171453,1753573848727,-1500.0,0.00021562,7]
[375171454,1753573848737,-1500.0,0.00021562,7]
[375171455,1753573848747,-1500.0,0.00021562,7]
[375171456,1753573848757,-1500.0,0.00021562,7]
[375171457,1753573848767,-1500.0,0.00021562,7]
[375171458,1753573848776,-1500.0,0.00021562,7]
[375171459,1753573848786,-1500.0,0.00021562,7]
[375171460,1753573848796,-1500.0,0.00021562,7]
[375171461,1753573848806,-1500.0,0.00021562,7]
[375171462,1753573848816,-1500.0,0.00021562,7]
[375171463,1753573848826,-1263.578108,0.00021562,7]
[375171464,1753573848836,-170.394869,0.00021562,2]
[375171465,1753573848846,-170.394869,0.00021562,2]
[375171466,1753573848856,-151.0,0.00021562,2]
[375171467,1753573848867,-151.0,0.00021562,2]
[375171468,1753573848877,-188.014812,0.00021562,2]
[375171469,1753573848888,-151.0,0.00021562,2]
[375171470,1753573848898,-801.039337,0.00021562,2]
[375171471,1753573848908,-801.039337,0.00021562,2]
[375171472,1753573848918,-444.862957,0.00021571,2]
[375171473,1753573848928,-444.862957,0.00021571,2]
[375171474,1753573848938,-151.0,0.00021571,2]
[375171475,1753573848948,-151.0,0.00021571,2]
[375171476,1753573848959,-151.0,0.00021571,2]
[375171477,1753573848969,-151.0,0.00021571,2]
[375171478,1753573848978,-151.0,0.00021571,2]
[375171479,1753573848988,-801.039337,0.00021571,2]
[375171480,1753573848998,-801.039337,0.00021571,2]
[375171481,1753573849008,-151.0,0.00021571,2]
[375171482,1753573849018,-151.0,0.00021571,2]
[375171483,1753573849028,-282.385004,0.00021571,2]
[375171484,1753573849038,-282.385004,0.00021571,2]
[375171485,1753573849048,-330.677177,0.00021571,2]
[375171486,1753573849059,-330.677177,0.00021571,2]
[375171487,1753573849069,-150.0,0.00021574,2]
[375171488,1753573849079,-346.66899918,0.00021576,2]
[375171489,1753573849089,-151.0,0.00021577,2]
[375171490,1753573849100,-151.0,0.00021577,2]
[375171491,1753573849110,-159.300379,0.00021577,2]
[375171492,1753573849120,-151.0,0.00021577,2]
[375171493,1753573849130,-184.097629,0.00021577,2]
[375171494,1753573849141,-151.0,0.00021577,2]
[375171495,1753573849151,-151.0,0.00021577,2]
[375171496,1753573849162,-151.0,0.00021577,2]
[375171497,1753573849172,-151.0,0.00021577,2]
[375171498,1753573849181,-151.0,0.00021577,2]
[375171499,1753573849192,-151.0,0.00021577,2]
[375171500,1753573849202,-10423.59633276,0.00021577,2]
[375171501,1753573849212,-221.380646,0.00021586,2]
[375171502,1753573849222,-221.380646,0.00021586,2]
[375171503,1753573849232,-444.862957,0.00021586,2]
[375171504,1753573849243,-444.862957,0.00021586,2]
[375171505,1753573849253,-272.443745,0.00021589,2]
[375171506,1753573849263,-272.443745,0.00021589,2]
[375171507,1753573849273,-151.0,0.00021589,2]
[375171508,1753573849282,-151.0,0.00021589,2]
[375171509,1753573849292,-151.0,0.00021589,2]
[375171510,1753573849303,-151.0,0.00021589,2]
[375171511,1753573849313,-528.817904,0.00021589,2]
[375171512,1753573849322,-151.0,0.00021589,2]
[375171513,1753573849332,-528.817904,0.00021589,2]
[375171514,1753573849342,-151.0,0.00021589,2]
[375171515,1753573849352,-151.0,0.00021589,2]
[375171516,1753573849366,-151.0,0.00021589,2]
[375171517,1753573849375,-151.0,0.00021589,2]
[375171518,1753573849385,-151.0,0.00021589,2]
[375171519,1753573849395,-151.0,0.00021589,2]
[375171520,1753573849405,-150.0,0.00021589,2]
[375171521,1753573849415,-151.0,0.00021589,2]
[375171522,1753573849425,-11855.0,0.00021589,2]
[375171523,1753573849435,-184.097629,0.00021592,2]
[375171524,1753573849445,-400.0,0.00021599,2]
[375171525,1753573849455,-3300.0,0.000216,7]
[375171526,1753573849466,-477.38037575,0.000216,7]
[375171527,1753573849476,-211.09751648,0.000216,7]
[375171528,1753573849485,-3460.02,0.000216,2]
[375171529,1753573849496,-231.220645,0.00021601,2]
[375171530,1753573849506,-151.0,0.00021601,2]
[375171531,1753573849516,-151.0,0.00021601,2]
[375171532,1753573849526,-151.0,0.00021601,2]
[375171533,1753573849536,-151.0,0.00021601,2]
[375171534,1753573849546,-151.0,0.00021601,2]
[375171535,1753573849556,-151.0,0.00021601,2]
[375171536,1753573849566,-151.0,0.00021601,2]
[375171537,1753573849576,-151.0,0.00021601,2]
[375171538,1753573849586,-170.394869,0.00021601,2]
[375171539,1753573849596,-170.394869,0.00021601,2]
[375171540,1753573849606,-1000.0,0.00021601,2]
[375171541,1753573849615,-1000.0,0.00021601,2]
[375171542,1753573849626,-1000.0,0.00021601,2]
[375171543,1753573849636,-1000.0,0.00021601,2]
[375171544,1753573849647,-1000.0,0.00021601,2]
[375171545,1753573849657,-1000.0,0.00021601,2]
[375171546,1753573849667,-1000.0,0.00021601,2]
[375171547,1753573849678,-1000.0,0.00021601,2]
[375171548,1753573849688,-1000.0,0.00021601,2]
[375171549,1753573849698,-1000.0,0.00021601,2]
[375171550,1753573849708,-1000.0,0.00021601,2]
[375171551,1753573849718,-1000.0,0.00021601,2]
[375171552,1753573849728,-1000.0,0.00021601,2]
[375171553,1753573849739,-1000.0,0.00021601,2]
[375171554,1753573849749,-1000.0,0.00021601,2]
[375171555,1753573849759,-1000.0,0.00021601,2]
[375171556,1753573849769,-1000.0,0.00021601,2]
[375171557,1753573849778,-1000.0,0.00021601,2]
[375171558,1753573849788,-1000.0,0.00021601,2]
[375171559,1753573849798,-1000.0,0.00021601,2]
[375171560,1753573849807,-1000.0,0.00021601,2]
[375171561,1753573849817,-1000.0,0.00021601,2]
[375171562,1753573849827,-1000.0,0.00021601,2]
[375171563,1753573849837,-1000.0,0.00021601,2]
[375171564,1753573849847,-1000.0,0.00021601,2]
[375171565,1753573849857,-1000.0,0.00021601,2]
[375171566,1753573849867,-1000.0,0.00021601,2]
[375171567,1753573849877,-1000.0,0.00021601,2]
[375171568,1753573849886,-1000.0,0.00021601,2]
[375171569,1753573849897,-1000.0,0.00021601,2]
[375171570,1753573849907,-1000.0,0.00021601,2]
[375171571,1753573849917,-1000.0,0.00021601,2]
[375171572,1753573849927,-1000.0,0.00021601,2]
[375171573,1753573849937,-151.0,0.00021601,2]
[375171574,1753573849947,-1000.0,0.00021601,2]
[375171575,1753573849957,-261.9108,0.00021601,2]
[375171576,1753573849967,-151.0,0.00021601,2]
[375171577,1753573849977,-151.0,0.00021601,2]
[375171578,1753573849989,-801.039337,0.00021601,2]
[375171579,1753573849999,-801.039337,0.00021601,2]
[375171580,1753573850009,-151.0,0.00021607,2]
[375171581,1753573850019,-272.443745,0.00021607,2]
[375171582,1753573850029,-272.443745,0.00021607,2]
[375171583,1753573850039,-152.643691,0.00021607,2]
[375171584,1753573850051,-151.0,0.00021607,2]
[375171585,1753573850062,-151.0,0.00021607,2]
[375171586,1753573850073,-151.0,0.00021607,2]
[375171587,1753573850084,-151.0,0.00021607,2]
[375171588,1753573850425,-151.0,0.00021607,2]
[375171589,1753573850437,-151.0,0.00021607,2]
[375171590,1753573850449,-151.0,0.00021607,2]
[375171591,1753573850460,-528.817904,0.00021607,2]
[375171592,1753573850470,-151.0,0.00021607,2]
[375171593,1753573850481,-528.817904,0.00021607,2]
[375171594,1753573850492,-151.0,0.00021607,2]
[375171595,1753573850503,-151.0,0.00021607,2]
[375171596,1753573850515,-151.0,0.00021607,2]
[375171597,1753573850525,-151.0,0.00021607,2]
[375171598,1753573850536,-224.53386,0.00021607,2]
[375171599,1753573850547,-151.0,0.00021607,2]
[375171600,1753573850556,-221.380646,0.00021607,2]
[375171601,1753573850566,-221.380646,0.00021607,2]
[375171602,1753573850576,-150.0,0.00021609,2]
[375171603,1753573850586,-151.0,0.00021613,2]
[375171604,1753573850595,-153.354533,0.00021613,2]
[375171605,1753573850605,-151.0,0.00021613,2]
[375171606,1753573850615,-184.097629,0.00021622,2]
[375171607,1753573850624,-151.0,0.00021622,2]
[375171608,1753573850633,-256.20401,0.00021622,2]
[375171609,1753573850644,-151.0,0.00021622,2]
[375171610,1753573850653,-151.0,0.00021622,2]
[375171611,1753573850663,-293.59775481,0.00021624,5]
[375171612,1753573850672,-534.76221213,0.00021633,2]
[375171613,1753573850681,-192.308987,0.00021637,2]
[375171614,1753573850691,-151.0,0.00021637,2]
[375171615,1753573850701,-272.443745,0.00021637,2]
[375171616,1753573850711,-272.443745,0.00021637,2]
[375171617,1753573850720,-151.0,0.00021637,2]
[375171618,1753573850729,-151.0,0.00021637,2]
[375171619,1753573850739,-528.817904,0.00021637,2]
[375171620,1753573850749,-151.0,0.00021637,2]
[375171621,1753573850759,-528.817904,0.00021637,2]
[375171622,1753573850771,-151.0,0.00021637,2]
[375171623,1753573850780,-151.0,0.00021637,2]
[375171624,1753573850791,-151.0,0.00021637,2]
[375171625,1753573850802,-151.0,0.00021639,2]
[375171626,1753573850811,-151.0,0.00021639,2]
[375171627,1753573850821,-151.0,0.00021639,2]
[375171628,1753573850832,-150.0,0.00021639,2]
[375171629,1753573850842,-184.097629,0.0002164,2]
[375171630,1753573850851,-150.0,0.00021641,2]
[375171631,1753573850861,-1694.1612875,0.00021643,2]
[375171632,1753573850872,-126394.5386666,0.00021643,2]
[375171633,1753573850882,-93515.7293341,0.00021643,2]
[375171634,1753573850892,-534.5095577,0.00021643,2]
[375171635,1753573850903,-127892.8646666,0.00021643,2]
[375171636,1753573850913,-164.74988134,0.00021643,10]
[375171637,1753573850923,-335.26217552,0.00021643,10]
[375171638,1753573850932,-150.0,0.00021647,2]
[375171639,1753573850942,-151.0,0.00021652,2]
[375171640,1753573850951,-211.09751648,0.00021653,2]
[375171641,1753573850961,-151.0,0.00021654,2]
[375171642,1753573850970,-151.0,0.00021654,2]
[375171643,1753573850980,-210.20200083,0.00021655,2]
[375171644,1753573850989,-839.96719532,0.00021655,2]
[375171645,1753573850999,-188.93728249,0.00021655,2]
[375171646,1753573851008,-754.99338082,0.00021655,2]
[375171647,1753573851017,-174.1825246,0.00021658,2]
[375171648,1753573851027,-35575.24,0.00021658,2]
[375171649,1753573851037,-15368.5174143,0.00021658,2]
[375171650,1753573851047,-134575.815,0.00021658,2]
[375171651,1753573851056,-151.0,0.00021658,2]
[375171652,1753573851066,-151.0,0.00021658,2]
[375171653,1753573851076,-151.0,0.00021658,2]
[375171654,1753573851085,-151.0,0.00021658,2]
[375171655,1753573851095,-282.385004,0.00021658,2]
[375171656,1753573851104,-282.385004,0.00021658,2]
[375171657,1753573851114,-330.677177,0.00021658,2]
[375171658,1753573851124,-330.677177,0.00021658,2]
[375171659,1753573851134,-9911.52121986,0.00021659,2]
[375171660,1753573851143,-150.0,0.00021663,2]
[375171661,1753573851153,-400.0,0.00021663,2]
[375171662,1753573851163,-3000.0,0.00021664,2]
[375171663,1753573851172,-184.097629,0.00021664,2]
[375171664,1753573851182,-151.0,0.00021664,2]
[375171665,1753573851191,-151.0,0.00021664,2]
[375171666,1753573851201,-528.817904,0.00021664,2]
[375171667,1753573851211,-151.0,0.00021664,2]
[375171668,1753573851222,-528.817904,0.00021664,2]
[375171669,1753573851232,-151.0,0.00021664,2]
[375171670,1753573851241,-151.0,0.00021664,2]
[375171671,1753573851251,-151.0,0.00021664,2]
[375171672,1753573851260,-263.37453,0.00021664,2]
[375171673,1753573851270,-151.0,0.00021664,2]
[375171674,1753573851279,-170.394869,0.00021664,2]
[375171675,1753573851289,-170.394869,0.00021664,2]
[375171676,1753573851299,-151.0,0.00021667,2]
[375171677,1753573851308,-151.0,0.00021667,2]
[375171678,1753573851318,-151.0,0.00021667,2]
[375171679,1753573851327,-151.0,0.00021667,2]
[375171680,1753573851337,-151.0,0.00021667,2]
[375171681,1753573851346,-150.0,0.00021671,2]
[375171682,1753573851356,-221.380646,0.00021673,2]
[375171683,1753573851370,-221.380636,0.00021673,2]
[375171684,1753573851380,-444.862957,0.00021673,2]
[375171685,1753573851390,-444.862957,0.00021673,2]
[375171686,1753573851401,-444.862957,0.00021673,2]
[375171687,1753573851411,-444.862964,0.00021673,2]
[375171688,1753573851421,-151.0,0.00021673,2]
[375171689,1753573851431,-151.0,0.00021673,2]
[375171690,1753573851441,-151.0,0.00021673,2]
[375171691,1753573851452,-151.0,0.00021673,2]
[375171692,1753573851461,-174.30374,0.00021673,2]
[375171693,1753573851471,-801.039337,0.00021673,2]
[375171694,1753573851482,-801.039337,0.00021673,2]
[375171695,1753573851492,-151.0,0.00021673,2]
[375171696,1753573851501,-151.0,0.00021673,2]
[375171697,1753573851511,-282.385004,0.00021673,2]
[375171698,1753573851521,-282.385004,0.00021673,2]
[375171699,1753573851531,-330.677177,0.00021673,2]
[375171700,1753573851542,-330.677177,0.00021673,2]
[375171701,1753573851552,-272.443745,0.00021679,2]
[375171702,1753573851562,-272.443745,0.00021679,2]
[375171703,1753573851571,-184.097629,0.00021679,2]
[375171704,1753573851581,-151.0,0.00021685,2]
[375171705,1753573851591,-151.0,0.00021685,2]
[375171706,1753573851600,-151.0,0.00021685,2]
[375171707,1753573851610,-170.394869,0.00021688,2]
[375171708,1753573851620,-170.394865,0.00021688,2]
[375171709,1753573851630,-7120.50170775,0.0002169,2]
[375171710,1753573851641,-4851.62781949,0.0002169,2]
[375171711,1753573851653,-2630.81169767,0.00021692,2]
[375171712,1753573851664,-293.59775481,0.00021693,5]
[375171713,1753573851674,-152.864865,0.00021694,2]
[375171714,1753573851684,-7120.50170775,0.00021697,2]
[375171715,1753573851694,-600.0,0.000217,7]
[375171716,1753573851704,-212.55,0.000217,2]
[375171717,1753573851714,-151.0,0.000217,2]
[375171718,1753573851723,-271.923944,0.000217,2]
[375171719,1753573851734,-379.0,0.000217,2]
[375171720,1753573851744,-774.0,0.000217,2]
[375171721,1753573851754,-239.0,0.000217,2]
[375171722,1753573851764,-3460.02,0.000217,2]
[375171723,1753573851774,-184.097629,0.00021703,2]
[375171724,1753573851785,-151.0,0.00021703,2]
[375171725,1753573851795,-528.817904,0.00021703,2]
[375171726,1753573851804,-151.0,0.00021703,2]
[375171727,1753573851814,-528.817904,0.00021703,2]
[375171728,1753573851824,-151.0,0.00021703,2]
[375171729,1753573851833,-151.0,0.00021703,2]
[375171730,1753573851842,-151.0,0.00021703,2]
[375171731,1753573851852,-151.0,0.00021703,2]
[375171732,1753573851861,-1134.09093398,0.00021705,2]
[375171733,1753573851871,-1000.0,0.0002171,2]
[375171734,1753573851880,-1000.0,0.0002171,2]
[375171735,1753573851890,-1000.0,0.0002171,2]
[375171736,1753573851902,-512.20558958,0.0002171,2]
[375171737,1753573851912,-40989.02059762,0.00021718,2]
[375171738,1753573851922,-272.443745,0.00021718,2]
[375171739,1753573851931,-272.443745,0.00021718,2]
[375171740,1753573851941,-184.097629,0.00021718,2]
[375171741,1753573851950,-184.097629,0.00021718,2]
[375171742,1753573851960,-7120.50170775,0.00021718,2]
[375171743,1753573851970,-2309.44526772,0.00021721,2]
[375171744,1753573851980,-2309.44526772,0.00021721,2]
[375171745,1753573851990,-40989.02059762,0.00021722,2]
[375171746,1753573852001,-40989.02059762,0.00021724,2]
[375171747,1753573852011,-151.0,0.00021724,2]
[375171748,1753573852021,-151.0,0.00021724,2]
[375171749,1753573852030,-152.281346,0.00021724,2]
[375171750,1753573852040,-7120.50170775,0.00021734,2]
[375171751,1753573852050,-1501.13942403,0.00021736,2]
[375171752,1753573852059,-2630.81169767,0.0002174,2]
[375171753,1753573852069,-400.0,0.00021744,2]
[375171754,1753573852079,-151.0,0.00021748,2]
[375171755,1753573852089,-224.556064,0.00021748,2]
[375171756,1753573852099,-272.443745,0.00021748,2]
[375171757,1753573852108,-272.443745,0.00021748,2]
[375171758,1753573852118,-1509.15682865,0.00021748,2]
[375171759,1753573852127,-19503.43202917,0.0002175,2]
[375171760,1753573852136,-212.0,0.0002175,2]
[375171761,1753573852146,-208.0,0.0002175,2]
[375171762,1753573852156,-2630.81169767,0.00021751,2]
[375171763,1753573852166,-2309.44526772,0.00021754,2]
[375171764,1753573852175,-151.0,0.00021754,2]
[375171765,1753573852185,-4851.62781949,0.00021755,2]
[375171766,1753573852196,-4851.62781949,0.00021756,2]
[375171767,1753573852205,-400.0,0.00021758,2]
[375171768,1753573852215,-2630.81169767,0.00021759,2]
[375171769,1753573852224,-293.59775481,0.00021762,5]
[375171770,1753573852233,-1134.09093398,0.00021763,2]
[375171771,1753573852243,-2630.81169767,0.00021768,2]
[375171772,1753573852252,-933.3543679,0.00021768,2]
[375171773,1753573853020,-3128.41093353,0.00021768,2]
[375171774,1753573853449,-150.0,0.00019803,7]
[375171775,1753573853458,-204.008482,0.00021078,2]
[375171776,1753573853467,-21387.0,0.00021377,2]
[375171777,1753573853476,-204.008482,0.00021399,2]
[375171778,1753573853486,-204.008482,0.00021414,2]
[375171779,1753573853495,-204.008482,0.00021556,2]
[375171780,1753573853505,-13338.82814975,0.00021768,2]
[375171781,1753573853517,-23588.42714644,0.00021768,2]
[375171782,1753573853526,-939.0,0.0002177,2]
[375171783,1753573853536,-500.0,0.0002177,2]
[375171784,1753573853545,-2977.0,0.0002177,2]
[375171785,1753573853554,-1887.0,0.0002177,2]
[375171786,1753573853564,-4851.62781949,0.0002177,2]
[375171787,1753573853573,-1134.09093398,0.00021777,2]
[375171788,1753573853583,-1134.09093398,0.00021781,2]
[375171789,1753573853593,-1134.09093398,0.00021781,2]
[375171790,1753573853602,-150.0,0.00021784,2]
[375171791,1753573853615,-150.0,0.00021784,2]
[375171792,1753573853625,-150.0,0.00021784,2]
[375171793,1753573853634,-150.0,0.00021784,2]
[375171794,1753573853643,-150.0,0.00021784,2]
[375171795,1753573853654,-150.0,0.00021784,2]
[375171796,1753573853663,-150.0,0.00021784,2]
[375171797,1753573853673,-150.0,0.00021784,2]
[375171798,1753573853682,-150.0,0.00021784,2]
[375171799,1753573853692,-150.0,0.00021784,2]
[375171800,1753573853701,-150.0,0.00021784,2]
[375171801,1753573853711,-1134.09093398,0.0002179,2]
[375171802,1753573853720,-7120.50170775,0.00021792,2]
[375171803,1753573853729,-600.0,0.000218,7]
[375171804,1753573853740,-2667.32345243,0.000218,2]
[375171805,1753573853749,-1006.79015962,0.000218,3]
[375171806,1753573853758,-2000.0,0.000218,2]
[375171807,1753573853768,-379.5,0.000218,2]
[375171808,1753573853784,-242.742,0.000218,2]
[375171809,1753573853794,-500.0,0.00021803,2]
[375171810,1753573853803,-300.0,0.00021803,2]
[375171811,1753573853812,-4851.62781949,0.00021803,2]
[375171812,1753573853822,-284.02998787,0.00021803,2]
[375171813,1753573853831,-8304.14128876,0.00021804,2]
[375171814,1753573853841,-151.0,0.00021804,2]
[375171815,1753573853851,-181.045939,0.00021804,2]
[375171816,1753573853860,-801.039337,0.00021804,2]
[375171817,1753573853870,-801.039341,0.00021804,2]
[375171818,1753573853880,-1028.3715,0.00021807,2]
[375171819,1753573853889,-2000.0,0.00021807,2]
[375171820,1753573853901,-2000.0,0.00021809,2]
[375171821,1753573853910,-2000.0,0.00021809,2]
[375171822,1753573853920,-2000.0,0.00021809,2]
[375171823,1753573853929,-2000.0,0.00021809,2]
[375171824,1753573853939,-2273.944917,0.0002181,2]
[375171825,1753573853948,-2000.0,0.00021811,2]
[375171826,1753573853960,-1378.72276598,0.00021811,2]
[375171827,1753573853970,-40989.02059762,0.00021812,2]
[375171828,1753573853981,-40989.02059762,0.00021814,2]
[375171829,1753573853992,-4851.62781949,0.00021815,2]
[375171830,1753573854002,-160.19683605,0.00021817,2]
[375171831,1753573854012,-349.89685062,0.00021817,2]
[375171832,1753573854022,-528.817904,0.00021817,2]
[375171833,1753573854031,-528.817904,0.00021817,2]
[375171834,1753573854040,-151.0,0.00021817,2]
[375171835,1753573854051,-151.0,0.00021817,2]
[375171836,1753573854060,-5553.85345824,0.00021817,2]
[375171837,1753573854069,-10423.59633276,0.00021817,2]
[375171838,1753573854079,-7120.50170775,0.00021818,2]
[375171839,1753573854089,-1358.66399352,0.00021818,2]
[375171840,1753573854098,-991.2821609,0.00021818,2]
[375171841,1753573854107,-1358.66399346,0.00021818,2]
[375171842,1753573854117,-1358.66399346,0.00021818,2]
[375171843,1753573854126,-1358.66399346,0.00021818,2]
[375171844,1753573854136,-2630.81169767,0.00021818,2]
[375171845,1753573854145,-1358.66399346,0.00021818,2]
[375171846,1753573854156,-1358.66399346,0.00021819,2]
[375171847,1753573854165,-1358.66399346,0.00021819,2]
[375171848,1753573854174,-1358.66399346,0.00021819,2]
[375171849,1753573854183,-1815.85292124,0.00021819,2]
[375171850,1753573854192,-1752.4938488,0.00021819,2]
[375171851,1753573854202,-1358.66399346,0.00021819,2]
[375171852,1753573854211,-1358.66399346,0.00021819,2]
[375171853,1753573854220,-500.0,0.00021819,2]
[375171854,1753573854231,-503.06102404,0.00021819,2]
[375171855,1753573854240,-417.94209335,0.00021819,2]
[375171856,1753573854249,-293.59775481,0.00021831,6]
[375171857,1753573854259,-400.0,0.00021841,2]
[375171858,1753573854268,-1043.88321134,0.00021871,2]
[375171859,1753573854278,-2000.0,0.00021872,2]
[375171860,1753573854287,-267.74541269,0.00021886,2]
[375171861,1753573854296,-1158.0,0.0002189,2]
[375171862,1753573854306,-1000.0,0.00021899,2]
[375171863,1753573854315,-2000.0,0.00021899,2]
[375171864,1753573854324,-600.0,0.000219,7]
[375171865,1753573854334,-34738.94987587,0.000219,3]
[375171866,1753573854390,-254.3252706,0.000219,3]
[375171867,1753573854415,-1726.00720309,0.000219,3]
[375171868,1753573854427,-4377.84293225,0.000219,3]
[375171869,1753573856164,-764.71578613,0.00019834,2]
[375171870,1753573856174,-204.008482,0.00020582,2]
[375171871,1753573856184,-150.0,0.00020705,7]
[375171872,1753573856193,-204.008482,0.00020756,2]
[375171873,1753573856203,-150.0,0.00020836,7]
[375171874,1753573856213,-150.0,0.00021032,7]
[375171875,1753573856223,-204.008482,0.00021078,2]
[375171876,1753573856233,-204.008482,0.00021399,2]
[375171877,1753573856243,-1369.29549883,0.00021456,2]
[375171878,1753573856256,-353.92,0.00021456,2]
[375171879,1753573856268,-2994.36793895,0.00021456,2]
[375171880,1753573856287,-433.83423717,0.00021456,2]
[375171881,1753573856297,-258.55051962,0.00021529,2]
[375171882,1753573857630,-150.0,0.00021093,7]
[375171883,1753573857641,-150.0,0.00021156,7]
[375171884,1753573857651,-150.0,0.00021285,7]
[375171885,1753573857662,-204.008482,0.00021414,2]
[375171886,1753573857673,-296.39151785,0.00021529,2]
[375171887,1753573857724,-4596.47563747,0.00021529,2]
[375171888,1753573857735,-204.008482,0.00021556,2]
[375171889,1753573857747,-204.008482,0.00021571,2]
[375171890,1753573857757,-204.008482,0.00021571,2]
[375171891,1753573857768,-5151.41767494,0.00021601,2]
[375171892,1753573857779,-204.008482,0.00021658,2]
[375171893,1753573857790,-204.008482,0.00021658,2]
[375171894,1753573857800,-204.008482,0.00021673,2]
[375171895,1753573857811,-204.008482,0.00021673,2]
[375171896,1753573857821,-5151.41767494,0.00021674,2]
[375171897,1753573857832,-5151.41767494,0.00021746,2]
[375171898,1753573857842,-605.68860934,0.00021819,2]
[375171899,1753573857871,-383.35,0.00021819,2]
[375171900,1753573857883,-714.19075267,0.00021819,2]
[375171901,1753573857895,-513.1828002,0.00021819,2]
[375171902,1753573866018,516.0,0.00018293,2]
[375171903,1753574009288,505.0,0.00018293,2]